fUSD/lending_fUSD_20250118
["ID","MTS","AMOUNT","RATE_DAILY","PERIOD"]
[349464702,1737197438227,-1138.53,0.00019876,2]
[349464704,1737197438237,-500.0,0.00019876,2]
[349464706,1737197438246,-500.0,0.00019876,2]
[349464708,1737197438256,-526.52285198,0.00019876,2]
[349464710,1737197438265,-524.13853425,0.00019876,2]
[349464712,1737197438274,-500.0,0.00019876,2]
[349464714,1737197438284,-500.0,0.00019876,2]
[349464716,1737197438294,-500.0,0.00019876,2]
[349464718,1737197438303,-500.0,0.00019876,2]
[349464720,1737197438312,-500.0,0.00019876,2]
[349464722,1737197438321,-500.0,0.00019876,2]
[349464724,1737197438331,-500.0,0.00019876,2]
[349464726,1737197438341,-1000.0,0.00019876,2]
[349464728,1737197438350,-726.06,0.00019876,2]
[349464730,1737197438359,-726.06,0.00019876,2]
[349464732,1737197438369,-726.06,0.00019876,2]
[349464734,1737197438382,-726.06,0.00019876,2]
[349464737,1737197438391,-1913.56,0.00019876,2]
[349464739,1737197438406,-500.0,0.00019876,2]
[349464741,1737197438418,-500.0,0.00019876,2]
[349464744,1737197438432,-500.0,0.00019876,2]
[349464746,1737197438443,-500.0,0.00019876,2]
[349464748,1737197438454,-500.0,0.00019876,2]
[349464750,1737197438464,-500.0,0.00019876,2]
[349464752,1737197438476,-500.0,0.00019876,2]
[349464755,1737197438489,-500.0,0.00019876,2]
[349464757,1737197438502,-777.74,0.00019876,2]
[349464759,1737197438514,-28.42159974,0.00019876,2]
[349464762,1737197438530,-471.57840026,0.00019876,2]
[349464764,1737197438542,-160.16139112,0.00019876,2]
[349464767,1737197438557,-358.50860888,0.00019876,2]
[349464769,1737197438570,-500.0,0.00019876,2]
[349464771,1737197438581,-500.0,0.00019876,2]
[349464774,1737197438593,-500.0,0.00019876,2]
[349464776,1737197438605,-648.97485361,0.00019876,2]
[349464778,1737197438617,-1065.48,0.00019876,2]
[349464780,1737197438627,-500.0,0.00019876,2]
[349464782,1737197438637,-500.0,0.00019876,2]
[349464785,1737197438650,-500.24,0.00019876,2]
[349464787,1737197438662,-704.96,0.00019876,2]
[349464789,1737197438673,-357.34821809,0.00019876,2]
[349464792,1737197438688,-142.65178191,0.00019876,2]
[349464794,1737197438701,-500.0,0.00019876,2]
[349464796,1737197438713,-500.0,0.00019876,2]
[349464799,1737197438726,-500.0,0.00019876,2]
[349464801,1737197438739,-1231.18,0.00019876,2]
[349464803,1737197438751,-500.0,0.00019876,2]
[349464805,1737197438762,-500.0,0.00019876,2]
[349464808,1737197438774,-500.0,0.00019876,2]
[349464810,1737197438787,-500.0,0.00019876,2]
[349464812,1737197438799,-500.0,0.00019876,2]
[349464814,1737197438811,-500.0,0.00019876,2]
[349464817,1737197438822,-500.0,0.00019876,2]
[349464819,1737197438834,-500.0,0.00019876,2]
[349464821,1737197438846,-500.0,0.00019876,2]
[349464823,1737197438858,-500.0,0.00019876,2]
[349464826,1737197438870,-500.0,0.00019876,2]
[349464828,1737197438882,-500.0,0.00019876,2]
[349464830,1737197438896,-500.0,0.00019876,2]
[349464832,1737197438908,-500.0,0.00019876,2]
[349464835,1737197438920,-500.0,0.00019876,2]
[349464837,1737197438934,-12.13210455,0.00019876,2]
[349464839,1737197438948,-627.18789545,0.00019876,2]
[349464841,1737197438959,-500.0,0.00019876,2]
[349464844,1737197438970,-510.53682085,0.00019876,2]
[349464846,1737197438982,-500.0,0.00019876,2]
[349464848,1737197438997,-500.0,0.00019876,2]
[349464850,1737197439010,-500.0,0.00019876,2]
[349464853,1737197439024,-500.0,0.00019876,2]
[349464855,1737197439036,-500.0,0.00019876,2]
[349464857,1737197439046,-500.0,0.00019876,2]
[349464859,1737197439056,-500.0,0.00019876,2]
[349464861,1737197439066,-500.0,0.00019876,2]
[349464863,1737197439078,-522.87,0.00019876,2]
[349464866,1737197439090,-500.0,0.00019876,2]
[349464868,1737197439104,-7.05550256,0.00019876,2]
[349465020,1737197441553,-492.94449744,0.00019876,2]
[349465021,1737197441563,-428.97752137,0.00019876,2]
[349465022,1737197441572,-500.0,0.00019876,2]
[349465023,1737197441582,-500.0,0.00019876,2]
[349465024,1737197441592,-500.0,0.00019876,2]
[349465025,1737197441602,-500.0,0.00019876,2]
[349465026,1737197441613,-500.0,0.00019876,2]
[349465027,1737197441623,-500.0,0.00019876,2]
[349465028,1737197441632,-500.0,0.00019876,2]
[349465029,1737197441642,-500.0,0.00019876,2]
[349465030,1737197441651,-500.0,0.00019876,2]
[349465031,1737197441661,-306.52432478,0.00019876,2]
[349465032,1737197441671,-500.0,0.00019876,2]
[349465033,1737197441681,-807.89,0.00019876,2]
[349465034,1737197441691,-500.0,0.00019876,2]
[349465035,1737197441700,-581.73930596,0.00019876,2]
[349465036,1737197441710,-500.0,0.00019876,2]
[349465037,1737197441720,-500.0,0.00019876,2]
[349465038,1737197441730,-500.0,0.00019876,2]
[349465039,1737197441739,-500.0,0.00019876,2]
[349465040,1737197441748,-500.0,0.00019876,2]
[349465041,1737197441758,-567.38,0.00019876,2]
[349465042,1737197441767,-500.0,0.00019876,2]
[349465043,1737197441776,-500.0,0.00019876,2]
[349465044,1737197441786,-500.0,0.00019876,2]
[349465045,1737197441795,-500.0,0.00019876,2]
[349465046,1737197441805,-736.97,0.00019876,2]
[349465047,1737197441814,-500.0,0.00019876,2]
[349465048,1737197441824,-736.97,0.00019876,2]
[349465049,1737197441833,-736.97,0.00019876,2]
[349465050,1737197441843,-210.33792228,0.00019876,2]
[349465051,1737197441852,-500.0,0.00019876,2]
[349465052,1737197441864,-736.97,0.00019876,2]
[349465053,1737197441873,-500.0,0.00019876,2]
[349465054,1737197441883,-500.0,0.00019876,2]
[349465055,1737197441890,-500.0,0.00019876,2]
[349465056,1737197441897,-956.85,0.00019876,2]
[349465057,1737197441904,-500.0,0.00019876,2]
[349465058,1737197441910,-500.0,0.00019876,2]
[349465059,1737197441920,-620.88,0.00019876,2]
[349465060,1737197441931,-500.0,0.00019876,2]
[349465061,1737197441940,-500.0,0.00019876,2]
[349465062,1737197441950,-500.0,0.00019876,2]
[349465063,1737197441959,-500.0,0.00019876,2]
[349465064,1737197441968,-500.0,0.00019876,2]
[349465065,1737197441978,-500.0,0.00019876,2]
[349465066,1737197441987,-500.0,0.00019876,2]
[349465067,1737197442001,-500.0,0.00019876,2]
[349465068,1737197442010,-500.0,0.00019876,2]
[349465069,1737197442019,-1381.3,0.00019876,2]
[349465070,1737197442029,-500.0,0.00019876,2]
[349465071,1737197442039,-500.0,0.00019876,2]
[349465072,1737197442049,-500.0,0.00019876,2]
[349465073,1737197442058,-500.0,0.00019876,2]
[349465074,1737197442067,-500.0,0.00019876,2]
[349465075,1737197442077,-500.0,0.00019876,2]
[349465076,1737197442087,-500.0,0.00019876,2]
[349465077,1737197442096,-500.0,0.00019876,2]
[349465078,1737197442106,-281.83,0.00019876,2]
[349465079,1737197442117,-500.0,0.00019876,2]
[349465080,1737197442127,-500.0,0.00019876,2]
[349465081,1737197442137,-500.0,0.00019876,2]
[349465082,1737197442146,-901.35,0.00019876,2]
[349465083,1737197442156,-901.35,0.00019876,2]
[349465084,1737197442165,-901.35,0.00019876,2]
[349465085,1737197442175,-901.35,0.00019876,2]
[349465086,1737197442184,-500.0,0.00019876,2]
[349465087,1737197442194,-500.0,0.00019876,2]
[349465088,1737197442203,-500.0,0.00019876,2]
[349465089,1737197442213,-500.0,0.00019876,2]
[349465090,1737197442223,-500.0,0.00019876,2]
[349465091,1737197442232,-1109.02,0.00019876,2]
[349465092,1737197442241,-734.0,0.00019876,2]
[349465093,1737197442251,-778.26,0.00019876,2]
[349465094,1737197442259,-778.26,0.00019876,2]
[349465095,1737197442268,-778.26,0.00019876,2]
[349465096,1737197442276,-778.26,0.00019876,2]
[349465097,1737197442285,-500.0,0.00019876,2]
[349465098,1737197442293,-500.0,0.00019876,2]
[349465099,1737197442302,-343.2,0.00019876,2]
[349465100,1737197442310,-500.0,0.00019876,2]
[349465101,1737197442319,-525.06312038,0.00019876,2]
[349465102,1737197442327,-500.0,0.00019876,2]
[349465103,1737197442334,-500.0,0.00019876,2]
[349465104,1737197442343,-500.0,0.00019876,2]
[349465105,1737197442353,-500.0,0.00019876,2]
[349465106,1737197442364,-500.0,0.00019876,2]
[349465107,1737197442376,-529.66,0.00019876,2]
[349465108,1737197442388,-500.0,0.00019876,2]
[349465109,1737197442399,-500.0,0.00019876,2]
[349465110,1737197442410,-500.0,0.00019876,2]
[349465111,1737197442421,-500.0,0.00019876,2]
[349465112,1737197442435,-500.0,0.00019876,2]
[349465113,1737197442447,-1409.18,0.00019876,2]
[349465114,1737197442456,-1409.18,0.00019876,2]
[349465115,1737197442468,-1409.18,0.00019876,2]
[349465116,1737197442480,-1409.18,0.00019876,2]
[349465117,1737197442489,-746.17,0.00019876,2]
[349465118,1737197442501,-198295.86388174,0.00019877,2]
[349465119,1737197442646,-2373.78217236,0.00019877,2]
[349465120,1737197442670,-493.08000484,0.00019877,2]
[349465121,1737197442683,-322.12639073,0.00019877,2]
[349465134,1737197442777,-273.55999146,0.00019877,2]
[349465136,1737197442787,-3238.23500006,0.00019877,2]
[349465140,1737197442804,-5174.01056154,0.00019877,2]
[349465142,1737197442814,-1778.9874083,0.00019877,2]
[349465144,1737197442910,-5795.14999902,0.00019877,2]
[349465176,1737197445817,-382.46993294,0.00019876,2]
[349465177,1737197445826,-425.37582705,0.00019877,2]
[349465178,1737197445863,-411.41085774,0.00019877,2]
[349465179,1737197446058,-58763.1249014,0.00019877,2]
[349465180,1737197446164,-305.775507,0.00019877,2]
[349465186,1737197511793,1252.0,0.000198,30]
[349465187,1737197528244,765.6,0.00016987,2]
[349465188,1737197544966,5000.0,0.0001985,30]
[349465189,1737197580047,5000.0,0.000198,30]
[349465190,1737197591574,2000.0,0.00022863,120]
[349465191,1737197603819,5000.0,0.000198,30]
[349465192,1737197890614,154.14,0.00010137,2]
[349465194,1737197902576,20000.0,0.00023,120]
[349465195,1737197937193,86125.8688578,0.000149,2]
[349465196,1737198055606,2000.0,0.0002,34]
[349465197,1737198085063,5050.0,0.0002,35]
[349465198,1737198192615,2000.0,0.00022999,120]
[349465199,1737198331132,-161.31891495,0.00016641,7]
[349465200,1737198348094,-2273.77584783,0.00016641,7]
[349465201,1737198427102,-1171.848618,0.00016641,7]
[349465202,1737198427123,-487.75073388,0.00016713,2]
[349465203,1737198428086,-681.57496882,0.00016713,2]
[349465204,1737198428108,-154.14,0.00016813,2]
[349465205,1737198428131,-1504.24,0.00017556,2]
[349465206,1737198428153,-1317.71997605,0.00017612,2]
[349465207,1737198428215,-856.06138691,0.00017612,2]
[349465208,1737198429096,-1490.15887443,0.00017612,2]
[349465209,1737198547298,-981.17,0.00015661,2]
[349465210,1737198547323,-300.0,0.0001664,2]
[349465211,1737198547343,-6390.812724,0.00016641,7]
[349465212,1737198553079,-16284.187279,0.00016641,7]
[349465213,1737198553100,-23900.0,0.0001742,2]
[349465214,1737198553120,-205.51201332,0.00017512,2]
[349465215,1737198553140,-317.1,0.00017612,2]
[349465216,1737198553160,-3433.68,0.00017612,2]
[349465217,1737198553180,-621.9,0.00017623,2]
[349465218,1737198553202,-341.96,0.00017651,2]
[349465219,1737198553223,-302.79,0.00017654,3]
[349465220,1737198553244,-717.08,0.00017655,2]
[349465221,1737198553264,-309.65,0.00017658,2]
[349465222,1737198553288,-250.0,0.00017793,2]
[349465223,1737198553310,-1000.0,0.00017883,2]
[349465224,1737198553332,-981.17,0.00017925,2]
[349465225,1737198553354,-171.59,0.00017961,2]
[349465226,1737198553374,-174.91,0.00018082,2]
[349465227,1737198553396,-500.0,0.000181,6]
[349465228,1737198553416,-420.0,0.00018181,2]
[349465229,1737198553436,-587.54,0.00018192,2]
[349465230,1737198553456,-1000.0,0.000182,6]
[349465231,1737198553478,-1500.0,0.000183,6]
[349465232,1737198553499,-1406.65660768,0.000184,6]
[349465233,1737198556078,-593.34339232,0.000184,6]
[349465234,1737198556100,-2500.0,0.000185,6]
[349465235,1737198556121,-270.13,0.00018513,2]
[349465236,1737198556143,-1560.0,0.00018514,2]
[349465237,1737198556164,-161.01,0.00018515,2]
[349465238,1737198556185,-250.0,0.00018575,2]
[349465239,1737198556206,-500.0,0.000186,6]
[349465240,1737198556227,-428.91,0.0001869,2]
[349465241,1737198556248,-251.0,0.0001869,2]
[349465242,1737198556269,-205.51201331,0.0001869,2]
[349465243,1737198556291,-1208.6144,0.0001869,2]
[349465244,1737198556315,-661.86,0.0001869,2]
[349465245,1737198556340,-500.0,0.000187,6]
[349465246,1737198556365,-500.0,0.0001879,2]
[349465247,1737198556387,-55555.0,0.0001879,2]
[349465248,1737198556407,-17801.33767923,0.0001879,2]
[349465249,1737198556429,-5000.0,0.0001879,2]
[349465250,1737198556449,-1342.5207,0.0001879,2]
[349465251,1737198556470,-37650.96541514,0.0001879,2]
[349465253,1737198586309,-2504.21748486,0.0001879,2]
[349465254,1737198586335,-100546.7562,0.0001879,2]
[349465255,1737198586356,-2007.6291,0.0001879,2]
[349465256,1737198586378,-365.2998,0.0001879,2]
[349465257,1737198586402,-1000.0,0.0001879,2]
[349465258,1737198586423,-715.0739,0.0001879,2]
[349465259,1737198586444,-6145.7491,0.0001879,2]
[349465260,1737198586465,-854.5159,0.0001879,2]
[349465261,1737198586486,-680.21208164,0.0001879,2]
[349465262,1737198586508,-1555.85204636,0.0001879,2]
[349465263,1737198586529,-156.45995296,0.00018791,2]
[349465264,1737198586550,-179.57865483,0.00018791,2]
[349465265,1737198586572,-19109.8896682,0.00018791,2]
[349465266,1737198586593,-376.34264496,0.00018791,2]
[349465267,1737198586615,-239.27140601,0.00018791,3]
[349465268,1737198586637,-500.0,0.000188,6]
[349465269,1737198586658,-151.9565878,0.00018873,2]
[349465270,1737198586678,-500.44931234,0.00018873,2]
[349465271,1737198586699,-500.0,0.00018873,2]
[349465272,1737198586720,-4787.0,0.00018877,2]
[349465273,1737198586742,-478.50273066,0.0001888,2]
[349465275,1737198586764,-478.50273066,0.00018881,2]
[349465276,1737198586785,-478.50273066,0.00018881,2]
[349465277,1737198586806,-4317.5169081,0.00018888,2]
[349465278,1737198586828,-208.28265483,0.00018889,2]
[349465279,1737198586850,-309.20194245,0.00018889,2]
[349465280,1737198586871,-300.0,0.0001889,2]
[349465281,1737198586891,-1000.0,0.0001889,2]
[349465282,1737198586913,-157.335,0.0001889,2]
[349465283,1737198586934,-500.0,0.0001889,2]
[349465284,1737198586957,-3616191.38126268,0.0001889,2]
[349465294,1737198632053,-400.0,0.000182,6]
[349465295,1737198632063,-500.0,0.00018209,2]
[349465296,1737198632073,-500.0,0.0001823,2]
[349465297,1737198632083,-800.0,0.000183,6]
[349465298,1737198632092,-1200.0,0.000184,6]
[349465299,1737198632102,-1700.0,0.000185,6]
[349465300,1737198632114,-2490.0378,0.0001869,2]
[349465301,1737198632123,-5000.0,0.0001879,2]
[349465302,1737198632132,-1561.74444801,0.00018791,2]
[349465303,1737198632142,-13568.57312294,0.00018791,2]
[349465304,1737198632151,-464.9,0.0001888,2]
[349465305,1737198632160,-464.9,0.00018881,2]
[349465306,1737198632169,-464.9,0.00018881,2]
[349465307,1737198632178,-464.9,0.00018881,2]
[349465308,1737198632187,-464.9,0.00018881,2]
[349465309,1737198632197,-38912.37405838,0.0001889,2]
[349465310,1737198632208,-941587.07800033,0.0001889,2]
[349465313,1737198633413,980.0,0.00016641,7]
[349465317,1737198637969,-326.11,0.00016641,7]
[349465318,1737198638300,-454.81433843,0.00016641,7]
[349465319,1737198638309,-2879.84517684,0.00016641,7]
[349465320,1737198638319,-2100.0,0.000186,6]
[349465321,1737198638331,-400.0,0.000187,6]
[349465322,1737198638344,-400.0,0.000188,6]
[349465323,1737198638354,-2319585.7147934,0.0001889,2]
[349465324,1737198638365,-250.0,0.00018891,2]
[349465325,1737198638378,-12302122.19,0.00018891,10]
[349465326,1737198638388,-152.155508,0.00018891,2]
[349465327,1737198638397,-929.91917,0.00018891,2]
[349465328,1737198638407,-929.91917,0.00018891,2]
[349465329,1737198638419,-242.597816,0.00018891,2]
[349465330,1737198638429,-151.0,0.00018891,2]
[349465331,1737198638439,-151.0,0.00018891,2]
[349465332,1737198638449,-151.0,0.00018891,2]
[349465335,1737198638459,-151.0,0.00018891,2]
[349465337,1737198638468,-231.270414,0.00018891,2]
[349465338,1737198638478,-1058.665786,0.00018891,2]
[349465339,1737198638488,-1058.665786,0.00018891,2]
[349465340,1737198638498,-151.0,0.00018891,2]
[349465341,1737198638508,-151.0,0.00018891,2]
[349465342,1737198638518,-151.0,0.00018891,2]
[349465343,1737198638528,-151.0,0.00018891,2]
[349465344,1737198638537,-718.296221,0.00018891,2]
[349465345,1737198638547,-718.296221,0.00018891,2]
[349465346,1737198638557,-177.354632,0.00018891,2]
[349465347,1737198638573,-182.593434,0.00018891,2]
[349465348,1737198638584,-184.197365,0.00018891,2]
[349465349,1737198638594,-184.197365,0.00018891,2]
[349465350,1737198638604,-151.318702,0.00018891,2]
[349465351,1737198638614,-151.0,0.00018891,2]
[349465352,1737198638625,-233.377542,0.00018891,2]
[349465353,1737198638635,-233.377542,0.00018891,2]
[349465354,1737198638645,-151.0,0.00018891,2]
[349465355,1737198638655,-157.847608,0.00018891,2]
[349465356,1737198638665,-151.0,0.00018891,2]
[349465357,1737198638675,-151.0,0.00018891,2]
[349465358,1737198638685,-151.0,0.00018891,2]
[349465359,1737198638694,-151.0,0.00018891,2]
[349465360,1737198638704,-154.158162,0.00018891,2]
[349465361,1737198638714,-452.564699,0.00018891,2]
[349465362,1737198638723,-151.0,0.00018891,2]
[349465363,1737198638733,-452.564699,0.00018891,2]
[349465364,1737198638742,-151.0,0.00018891,2]
[349465365,1737198638752,-198.895524,0.00018891,2]
[349465366,1737198638762,-10000.0,0.00018891,2]
[349465367,1737198638771,-10000.0,0.00018891,2]
[349465368,1737198638780,-10000.0,0.00018891,2]
[349465369,1737198638790,-754.951647,0.00018891,2]
[349465370,1737198638799,-151.0,0.00018891,2]
[349465371,1737198638809,-271.808278,0.00018891,2]
[349465372,1737198638819,-151.0,0.00018891,2]
[349465373,1737198638828,-754.951647,0.00018891,2]
[349465374,1737198638838,-151.0,0.00018891,2]
[349465375,1737198638847,-285.489281,0.00018891,2]
[349465376,1737198638856,-285.489281,0.00018891,2]
[349465377,1737198638865,-151.0,0.00018891,2]
[349465378,1737198638877,-151.0,0.00018891,2]
[349465379,1737198638887,-500.0,0.000189,6]
[349465380,1737198638896,-382.93056753,0.000189,2]
[349465381,1737198638906,-382.93056737,0.00018934,2]
[349465382,1737198638915,-382.93056737,0.00018969,2]
[349465383,1737198638925,-152.4,0.00019,2]
[349465384,1737198638934,-152.4,0.00019,2]
[349465385,1737198638943,-152.4,0.00019,2]
[349465386,1737198638954,-152.4,0.00019,2]
[349465387,1737198638963,-152.4,0.00019,2]
[349465388,1737198638973,-152.4,0.00019,2]
[349465389,1737198638983,-152.4,0.00019,2]
[349465390,1737198638992,-152.4,0.00019,2]
[349465391,1737198639001,-152.4,0.00019,2]
[349465392,1737198639011,-152.4,0.00019,2]
[349465393,1737198639021,-152.4,0.00019,2]
[349465394,1737198639030,-152.4,0.00019,2]
[349465395,1737198639040,-152.4,0.00019,2]
[349465396,1737198639051,-152.4,0.00019,2]
[349465397,1737198639062,-152.4,0.00019,2]
[349465398,1737198639071,-152.4,0.00019,2]
[349465399,1737198639082,-152.4,0.00019,2]
[349465400,1737198639091,-152.4,0.00019,2]
[349465401,1737198639100,-152.4,0.00019,2]
[349465402,1737198639110,-152.4,0.00019,2]
[349465403,1737198639119,-382.93056737,0.00019003,2]
[349465404,1737198639128,-500.0,0.00019027,2]
[349465405,1737198639290,-382.93056737,0.00019038,2]
[349465406,1737198639311,-382.93056737,0.00019072,2]
[349465407,1737198639320,-382.93056737,0.00019107,2]
[349465408,1737198639332,-382.93056737,0.00019141,2]
[349465409,1737198639343,-500.0,0.00019164,2]
[349465410,1737198639353,-500.9989011,0.00019173,2]
[349465411,1737198639362,-151.83035939,0.00019173,2]
[349465412,1737198639374,-500.77458767,0.00019173,2]
[349465413,1737198639384,-382.93056737,0.00019176,2]
[349465414,1737198639394,-151.0,0.00019178,2]
[349465415,1737198639404,-500.0,0.00019178,2]
[349465416,1737198639418,-500.0,0.00019178,2]
[349465417,1737198639428,-500.0,0.00019178,2]
[349465418,1737198639437,-500.0,0.00019178,2]
[349465419,1737198639448,-500.0,0.00019178,2]
[349465420,1737198639458,-500.0,0.00019178,2]
[349465421,1737198639468,-500.0,0.00019178,2]
[349465422,1737198639477,-500.0,0.00019178,2]
[349465423,1737198639487,-500.0,0.00019178,2]
[349465424,1737198639496,-500.0,0.00019178,2]
[349465425,1737198639505,-500.0,0.00019178,2]
[349465426,1737198639515,-500.0,0.00019178,2]
[349465427,1737198639524,-500.0,0.00019178,2]
[349465428,1737198639533,-500.0,0.00019178,2]
[349465429,1737198639543,-500.0,0.00019178,2]
[349465430,1737198639552,-500.0,0.00019178,2]
[349465431,1737198639562,-500.0,0.00019178,2]
[349465432,1737198639571,-500.0,0.00019178,2]
[349465433,1737198639582,-500.0,0.00019178,2]
[349465434,1737198639592,-500.0,0.00019178,2]
[349465435,1737198639601,-500.0,0.00019178,2]
[349465436,1737198639611,-500.0,0.00019178,2]
[349465437,1737198639623,-500.0,0.00019178,2]
[349465438,1737198639635,-500.0,0.00019178,2]
[349465439,1737198639644,-500.0,0.00019178,2]
[349465440,1737198639654,-500.0,0.00019178,2]
[349465441,1737198639663,-504.49266907,0.00019178,2]
[349465442,1737198639673,-500.0,0.00019178,2]
[349465443,1737198639683,-500.0,0.00019178,2]
[349465444,1737198639692,-500.0,0.00019178,2]
[349465445,1737198639702,-432.77853775,0.00019178,2]
[349465446,1737198639711,-500.0,0.00019178,2]
[349465447,1737198639720,-500.0,0.00019178,2]
[349465448,1737198639730,-500.0,0.00019178,2]
[349465449,1737198639739,-500.0,0.00019178,2]
[349465451,1737198639750,-500.0,0.00019178,2]
[349465452,1737198639761,-500.0,0.00019178,2]
[349465453,1737198639771,-500.0,0.00019178,2]
[349465454,1737198639781,-500.0,0.00019178,2]
[349465455,1737198639791,-500.0,0.00019178,2]
[349465456,1737198639801,-500.0,0.00019178,2]
[349465457,1737198639810,-500.0,0.00019178,2]
[349465458,1737198639820,-500.0,0.00019178,2]
[349465460,1737198639829,-621.2295449,0.00019178,2]
[349465461,1737198639839,-500.0,0.00019178,2]
[349465462,1737198639848,-500.0,0.00019178,2]
[349465463,1737198639858,-500.0,0.00019178,2]
[349465464,1737198639868,-500.0,0.00019178,2]
[349465465,1737198639877,-500.0,0.00019178,2]
[349465466,1737198639887,-500.0,0.00019178,2]
[349465467,1737198639896,-500.0,0.00019178,2]
[349465468,1737198639906,-500.0,0.00019178,2]
[349465469,1737198639916,-500.0,0.00019178,2]
[349465470,1737198639925,-500.0,0.00019178,2]
[349465471,1737198639935,-537.79496991,0.00019178,2]
[349465472,1737198639944,-500.0,0.00019178,2]
[349465473,1737198639953,-500.0,0.00019178,2]
[349465474,1737198639962,-500.0,0.00019178,2]
[349465475,1737198639971,-500.0,0.00019178,2]
[349465476,1737198639980,-500.0,0.00019178,2]
[349465477,1737198639989,-500.0,0.00019178,2]
[349465478,1737198639998,-500.0,0.00019178,2]
[349465479,1737198640008,-500.0,0.00019178,2]
[349465480,1737198640017,-500.0,0.00019178,2]
[349465481,1737198640027,-506.61839384,0.00019178,2]
[349465482,1737198640037,-500.0,0.00019178,2]
[349465483,1737198640047,-500.0,0.00019178,2]
[349465484,1737198640056,-500.0,0.00019178,2]
[349465485,1737198640066,-500.0,0.00019178,2]
[349465486,1737198640075,-500.0,0.00019178,2]
[349465487,1737198640084,-500.0,0.00019178,2]
[349465488,1737198640093,-500.0,0.00019178,2]
[349465489,1737198640103,-500.0,0.00019178,2]
[349465490,1737198640112,-500.0,0.00019178,2]
[349465491,1737198640122,-500.0,0.00019178,2]
[349465492,1737198640132,-500.0,0.00019178,2]
[349465493,1737198640143,-186.75234243,0.00019178,2]
[349465494,1737198640154,-500.0,0.00019178,2]
[349465495,1737198640163,-504.92562809,0.00019178,2]
[349465496,1737198640173,-500.0,0.00019178,2]
[349465497,1737198640182,-500.0,0.00019178,2]
[349465498,1737198640192,-500.0,0.00019178,2]
[349465499,1737198640201,-500.0,0.00019178,2]
[349465500,1737198640211,-500.0,0.00019178,2]
[349465501,1737198640220,-500.0,0.00019178,2]
[349465502,1737198640230,-500.0,0.00019178,2]
[349465503,1737198640239,-500.0,0.00019178,2]
[349465504,1737198640248,-500.0,0.00019178,2]
[349465505,1737198640257,-500.0,0.00019178,2]
[349465506,1737198640266,-500.0,0.00019178,2]
[349465507,1737198640275,-501.50585485,0.00019178,2]
[349465508,1737198640285,-500.0,0.00019178,2]
[349465509,1737198640294,-500.0,0.00019178,2]
[349465510,1737198640303,-500.0,0.00019178,2]
[349465511,1737198640313,-500.0,0.00019178,2]
[349465512,1737198640322,-500.0,0.00019178,2]
[349465513,1737198640334,-500.0,0.00019178,2]
[349465514,1737198640346,-500.0,0.00019178,2]
[349465515,1737198640357,-500.0,0.00019178,2]
[349465516,1737198640370,-500.0,0.00019178,2]
[349465517,1737198640379,-500.0,0.00019178,2]
[349465518,1737198640389,-500.0,0.00019178,2]
[349465519,1737198640399,-500.0,0.00019178,2]